[Event "DVM U20w 2019"]
[Site "Braunschweig"]
[Date "2019.12.29"]
[Round "5"]
[White "Fock, Amina"]
[Black "Schiewe, Nadin"]
[Result "1-0"]
[ECO "C42"]
[WhiteElo "1807"]
[BlackElo "1629"]
[Annotator "NA"]
[PlyCount "40"]
[EventDate "2019.12.27"]
[EventType "team-tourn"]
[EventRounds "7"]
[EventCountry "GER"]
[SourceTitle "playchess.com"]
[Source "ChessBase"]
[SourceQuality "1"]
[WhiteTeam "SK Nordhorn-Blanke"]
[BlackTeam "Leegebrucher SF"]
[TimeControl "40/5400+30:1800+30"]

1. e4 {[%emt 0:00:00]} e5 {[%emt 0:00:00]} 2. Nf3 {[%emt 0:00:00]} Nf6 {[%emt 0:00:00]} 3. Nxe5 {[%emt 0:00:00]} d6 {[%emt 0:00:03]} 4. Nf3 {[%emt 0:00:01]} Nxe4 {[%emt 0:00:15]} 5. Nc3 {[%emt 0:00:07]} Nf6 {[%emt 0:01:07]} 6. d4 {[%emt 0:04:40]} d5 {[%emt 0:01:49]} 7. Bd3 {[%emt 0:02:09]} c6 {[%emt 0:03:12]} 8. Bf4 {[%emt 0:01:39]} Bd6 {[%emt 0:02:12]} 9. Qe2+ {[%emt 0:02:34]} Be7 {[%emt 0:04:42]} 10. Be5 {[%emt 0:07:01]} O-O {[%emt 0:03:17]} 11. h3 {[%emt 0:02:31]} Re8 {[%emt 0:02:37]} 12. Nd1 {[%emt 0:03:38]} Nfd7 {[%emt 0:09:57]} 13. Ne3 {[%emt 0:02:56]} Nxe5 {[%emt 0:04:15]} 14. Nxe5 {[%emt 0:00:33]} Be6 {[%emt 0:00:42]} 15. O-O {[%emt 0:04:44]} Nd7 {[%emt 0:01:54]} 16. f4 {[%emt 0:04:33]} Bd6 {[%emt 0:03:11]} 17. f5 {[%emt 0:06:20]} Nxe5 {[%emt 0:04:00]} 18. dxe5 {[%emt 0:01:54]} Bxf5 {[%emt 0:04:31]} 19. Nxf5 {[%emt 0:02:30]} Bxe5 {[%emt 0:01:38]} 20. Qh5 {[%emt 0:03:12] normal} f6 {[%emt 0:05:55] normal} 1-0

[Event "DVM U20w 2019"]
[Site "Braunschweig"]
[Date "2019.12.29"]
[Round "5"]
[White "Peglau, Sarah"]
[Black "Schnabel, Luise"]
[Result "1/2-1/2"]
[ECO "A59"]
[WhiteElo "1760"]
[BlackElo "1836"]
[Annotator "NA"]
[PlyCount "67"]
[EventDate "2019.12.27"]
[EventType "team-tourn"]
[EventRounds "7"]
[EventCountry "GER"]
[SourceTitle "playchess.com"]
[Source "ChessBase"]
[SourceQuality "1"]
[WhiteTeam "Schachzentrum Seeblick"]
[BlackTeam "TuRa Harksheide Norderstedt"]
[TimeControl "40/5400+30:1800+30"]

1. d4 {[%emt 0:00:00]} Nf6 {[%emt 0:00:00]} 2. c4 {[%emt 0:00:00]} c5 {[%emt 0:00:00]} 3. d5 {[%emt 0:00:02]} b5 {[%emt 0:00:03]} 4. cxb5 {[%emt 0:00:11]} a6 {[%emt 0:00:08] unterminated} 5. bxa6 {[%emt 0:00:27]} Bxa6 {[%emt 0:00:22]} 6. Nc3 {[%emt 0:01:47]} g6 {[%emt 0:01:24]} 7. e4 {[%emt 0:04:55]} Bxf1 {[%emt 0:00:10]} 8. Kxf1 {[%emt 0:00:01]} d6 {[%emt 0:00:34] unterminated} 9. Nge2 {[%emt 0:02:51] unterminated} Bg7 {[%emt 0:01:20]} 10. g3 {[%emt 0:01:29] unterminated} O-O {[%emt 0:00:54]} 11. Kg2 {[%emt 0:00:16]} Nbd7 {[%emt 0:01:12] unterminated} 12. Qc2 {[%emt 0:02:32] unterminated} Qa5 {[%emt 0:04:09] unterminated} 13. Bd2 {[%emt 0:07:01] unterminated} Rfb8 {[%emt 0:04:33] unterminated} 14. b3 {[%emt 0:10:59] unterminated} Qa6 {[%emt 0:09:50] unterminated} 15. Rab1 $14 {[%emt 0:04:49]} Nb6 {[%emt 0:09:15]} 16. a4 {[%emt 0:19:10]} Rc8 {[%emt 0:06:49]} 17. Rhc1 {[%emt 0:04:51]} Ne8 {[%emt 0:11:33]} 18. Be3 {[%emt 0:15:15]} Rab8 {[%emt 0:12:49]} 19. Qd1 {[%emt 0:09:26]} Nf6 {[%emt 0:03:28]} 20. f3 {[%emt 0:01:13]} Nfd7 {[%emt 0:02:09]} 21. h3 {[%emt 0:04:35]} Ne5 {[%emt 0:05:35]} 22. Nb5 {[%emt 0:04:24]} c4 {[%emt 0:05:09]} 23. Bxb6 {[%emt 0:00:10]} Rxb6 {[%emt 0:03:55]} 24. f4 {[%emt 0:00:21]} Nd3 {[%emt 0:03:06]} 25. Rxc4 {[%emt 0:00:42]} Rxc4 {[%emt 0:02:55]} 26. bxc4 {[%emt 0:00:01]} Nb2 {[%emt 0:00:36]} 27. Qc2 {[%emt 0:02:07]} Nxa4 {[%emt 0:01:38]} 28. Nc1 {[%emt 0:01:25]} Nc5 {[%emt 0:02:29]} 29. Nb3 {[%emt 0:00:18]} Nxb3 {[%emt 0:01:04]} 30. Rxb3 {[%emt 0:00:03]} Qb7 {[%emt 0:01:17]} 31. Qa2 {[%emt 0:01:15]} Ra6 {[%emt 0:01:25]} 32. Ra3 {[%emt 0:00:01]} Rxa3 {[%emt 0:00:14]} 33. Qxa3 {[%emt 0:00:02]} Qc8 {[%emt 0:01:15]} 34. Qa4 {[%emt 0:00:03] normal} 1/2-1/2

[Event "DVM U20w 2019"]
[Site "Braunschweig"]
[Date "2019.12.29"]
[Round "5"]
[White "Sereda, Yaroslava"]
[Black "Martin, Anastasia"]
[Result "1-0"]
[ECO "C65"]
[WhiteElo "1726"]
[BlackElo "1235"]
[Annotator "NA"]
[PlyCount "51"]
[EventDate "2019.12.27"]
[EventType "team-tourn"]
[EventRounds "7"]
[EventCountry "GER"]
[SourceTitle "playchess.com"]
[Source "ChessBase"]
[SourceQuality "1"]
[WhiteTeam "SG Solingen"]
[BlackTeam "OSG Baden-Baden"]
[TimeControl "40/5400+30:1800+30"]

1. e4 {[%emt 0:00:00]} e5 {[%emt 0:00:00]} 2. Nf3 {[%emt 0:00:00]} Nc6 {[%emt 0:00:00]} 3. Bb5 {[%emt 0:00:00]} Nf6 {[%emt 0:00:00]} 4. d4 {[%emt 0:00:09]} Nxd4 {[%emt 0:00:24]} 5. Nxd4 {[%emt 0:00:47]} c6 {[%emt 0:00:19]} 6. Bc4 {[%emt 0:04:08]} exd4 {[%emt 0:00:57]} 7. O-O {[%emt 0:00:48]} Be7 {[%emt 0:01:44]} 8. Re1 {[%emt 0:00:39]} O-O {[%emt 0:05:02]} 9. e5 {[%emt 0:00:38]} Nd5 10. Bxd5 {[%emt 0:02:16]} cxd5 {[%emt 0:02:32]} 11. Qxd4 {[%emt 0:00:28]} Qa5 {[%emt 0:01:25]} 12. Nc3 {[%emt 0:00:49]} d6 {[%emt 0:12:02]} 13. Qxd5 {[%emt 0:01:18]} Qb6 {[%emt 0:04:20]} 14. exd6 {[%emt 0:05:28]} Bxd6 {[%emt 0:03:56]} 15. Ne4 {[%emt 0:05:02]} Bc7 {[%emt 0:07:24]} 16. Be3 {[%emt 0:06:19]} Qxb2 {[%emt 0:07:11]} 17. Bd4 {[%emt 0:02:17]} Be6 18. Qc5 {[%emt 0:02:21]} Bb6 {[%emt 0:08:22]} 19. Qxf8+ {[%emt 0:00:36]} Kxf8 {[%emt 0:01:52]} 20. Bxb2 {[%emt 0:00:08]} Rd8 {[%emt 0:02:46]} 21. a4 {[%emt 0:03:33]} Bd4 {[%emt 0:03:42]} 22. Rad1 {[%emt 0:00:38]} Bb6 {[%emt 0:01:46]} 23. Rxd8+ {[%emt 0:00:13]} Bxd8 {[%emt 0:00:01]} 24. Nc5 {[%emt 0:00:33] normal} Bc8 {[%emt 0:01:45] normal} 25. Ba3 {[%emt 0:00:43]} Be7 {[%emt 0:01:30] normal} 26. Nd7+ {[%emt 0:00:19] normal} 1-0

[Event "DVM U20w 2019"]
[Site "Braunschweig"]
[Date "2019.12.29"]
[Round "5"]
[White "Sokolowski, Judith"]
[Black "Stephan, Lia"]
[Result "1-0"]
[ECO "C45"]
[WhiteElo "1722"]
[BlackElo "1232"]
[Annotator "NA"]
[PlyCount "36"]
[EventDate "2019.12.27"]
[EventType "team-tourn"]
[EventRounds "7"]
[EventCountry "GER"]
[SourceTitle "playchess.com"]
[Source "ChessBase"]
[SourceQuality "1"]
[WhiteTeam "Düsseldorfer SK"]
[BlackTeam "SG Blau-Weiß Stadtilm"]
[TimeControl "40/5400+30:1800+30"]

1. e4 {[%emt 0:00:00]} e5 {[%emt 0:00:00]} 2. Nf3 {[%emt 0:00:00]} Nc6 {[%emt 0:00:00]} 3. d4 {[%emt 0:00:00]} exd4 {[%emt 0:00:15]} 4. Nxd4 {[%emt 0:00:00]} Bc5 {[%emt 0:00:35]} 5. Be3 {[%emt 0:00:00]} Qf6 {[%emt 0:00:39]} 6. Nb5 {[%emt 0:00:35]} Bxe3 {[%emt 0:15:27]} 7. fxe3 {[%emt 0:00:13]} Qe5 {[%emt 0:00:29]} 8. Nd2 {[%emt 0:09:52]} Nce7 {[%emt 0:33:25]} 9. Nc4 {[%emt 0:15:21]} Qc5 {[%emt 0:03:46]} 10. c3 {[%emt 0:14:29]} b6 {[%emt 0:24:58]} 11. b4 {[%emt 0:02:55]} Qc6 {[%emt 0:03:15]} 12. Ne5 {[%emt 0:10:29]} Qb7 {[%emt 0:05:57]} 13. Qg4 {[%emt 0:03:39]} g6 {[%emt 0:02:58]} 14. Qf4 {[%emt 0:01:31]} f6 {[%emt 0:02:32]} 15. Ng4 {[%emt 0:02:32]} Kf7 {[%emt 0:02:22] normal} 16. Nxc7 {[%emt 0:02:48]} Rb8 {[%emt 0:00:12]} 17. Bc4+ {[%emt 0:01:06] normal} d5 {[%emt 0:01:04]} 18. exd5 {[%emt 0:01:02]} Bxg4 1-0

[Event "DVM U20w 2019"]
[Site "Braunschweig"]
[Date "2019.12.29"]
[Round "5"]
[White "Oberhofer, Marie"]
[Black "Puls, Luisa"]
[Result "1-0"]
[ECO "B76"]
[WhiteElo "1700"]
[BlackElo "1551"]
[Annotator "NA"]
[PlyCount "44"]
[EventDate "2019.12.27"]
[EventType "team-tourn"]
[EventRounds "7"]
[EventCountry "GER"]
[SourceTitle "playchess.com"]
[Source "ChessBase"]
[SourceQuality "1"]
[WhiteTeam "SC Bavaria Regensburg"]
[BlackTeam "SG Güstrow/Teterow"]
[TimeControl "40/5400+30:1800+30"]

1. e4 {[%emt 0:00:00]} c5 {[%emt 0:00:00]} 2. Nf3 {[%emt 0:00:00]} d6 {[%emt 0:00:00]} 3. d4 {[%emt 0:00:00]} cxd4 {[%emt 0:00:00]} 4. Nxd4 {[%emt 0:00:00]} Nf6 {[%emt 0:00:11]} 5. Nc3 {[%emt 0:00:00]} g6 {[%emt 0:00:09]} 6. Be3 {[%emt 0:00:05]} Bg7 {[%emt 0:00:11]} 7. f3 {[%emt 0:00:05]} O-O {[%emt 0:00:31]} 8. Qd2 {[%emt 0:00:06]} Nc6 {[%emt 0:00:44]} 9. O-O-O {[%emt 0:00:09]} Nxd4 {[%emt 0:04:19]} 10. Bxd4 {[%emt 0:00:58]} Be6 {[%emt 0:00:32]} 11. Nd5 {[%emt 0:05:30]} Bxd5 {[%emt 0:08:04]} 12. exd5 {[%emt 0:00:18]} Qc7 {[%emt 0:02:06]} 13. h4 {[%emt 0:03:53]} h5 {[%emt 0:05:38]} 14. Bd3 {[%emt 0:11:23]} Nxd5 {[%emt 0:15:13]} 15. Bxg7 {[%emt 0:00:24]} Kxg7 {[%emt 0:00:07]} 16. Bxg6 {[%emt 0:06:01]} fxg6 {[%emt 0:06:33]} 17. Qxd5 {[%emt 0:00:16]} Rac8 {[%emt 0:02:46]} 18. c3 {[%emt 0:02:30]} Kh7 {[%emt 0:05:14]} 19. g4 {[%emt 0:03:24]} hxg4 {[%emt 0:07:09]} 20. h5 {[%emt 0:05:29]} Qd7 {[%emt 0:26:04]} 21. hxg6+ {[%emt 0:00:26]} Kg7 {[%emt 0:06:17] normal} 22. Rh7+ {[%emt 0:02:55]} Kf6 {[%emt 0:00:57] normal} 1-0

[Event "DVM U20w 2019"]
[Site "Braunschweig"]
[Date "2019.12.29"]
[Round "5"]
[White "Joers, Pia-Milena"]
[Black "Pavlov, Liliane"]
[Result "1/2-1/2"]
[ECO "A48"]
[WhiteElo "1646"]
[BlackElo "1623"]
[Annotator "NA"]
[PlyCount "92"]
[EventDate "2019.12.27"]
[EventType "team-tourn"]
[EventRounds "7"]
[EventCountry "GER"]
[SourceTitle "playchess.com"]
[Source "ChessBase"]
[SourceQuality "1"]
[WhiteTeam "SG Güstrow/Teterow"]
[BlackTeam "SC Bavaria Regensburg"]
[TimeControl "40/5400+30:1800+30"]

1. d4 {[%emt 0:00:00]} Nf6 {[%emt 0:00:00]} 2. Nf3 {[%emt 0:00:00]} g6 {[%emt 0:00:00]} 3. Bf4 {[%emt 0:00:00]} Bg7 {[%emt 0:00:00]} 4. e3 {[%emt 0:00:21]} d6 {[%emt 0:02:56]} 5. Bd3 {[%emt 0:04:31]} O-O {[%emt 0:01:44]} 6. h3 {[%emt 0:05:01]} Nbd7 {[%emt 0:01:41]} 7. Nbd2 {[%emt 0:02:45]} b6 {[%emt 0:03:07]} 8. c3 {[%emt 0:01:03]} Bb7 {[%emt 0:00:23]} 9. Qc2 {[%emt 0:02:11]} Rc8 {[%emt 0:00:37]} 10. O-O {[%emt 0:08:04]} Re8 {[%emt 0:01:45]} 11. Bh2 {[%emt 0:03:10]} a6 {[%emt 0:02:35]} 12. Rac1 {[%emt 0:05:22]} c5 {[%emt 0:07:39]} 13. Qd1 {[%emt 0:11:36]} e5 {[%emt 0:09:34]} 14. Bc4 {[%emt 0:08:02]} e4 {[%emt 0:03:55]} 15. Ne1 {[%emt 0:02:59]} d5 {[%emt 0:01:06]} 16. Be2 {[%emt 0:00:48]} Qe7 {[%emt 0:06:54]} 17. Nc2 {[%emt 0:01:39]} Rf8 {[%emt 0:05:26]} 18. f3 {[%emt 0:10:49]} Bh6 {[%emt 0:07:40]} 19. f4 {[%emt 0:07:24]} Ne8 {[%emt 0:02:56]} 20. g4 {[%emt 0:04:55]} Nd6 {[%emt 0:08:44]} 21. g5 {[%emt 0:00:47]} Bg7 {[%emt 0:00:07]} 22. Qe1 {[%emt 0:00:46]} f6 {[%emt 0:00:59]} 23. h4 {[%emt 0:00:07]} h6 {[%emt 0:00:17]} 24. Qg3 {[%emt 0:00:44]} Nf5 {[%emt 0:00:33]} 25. Qg4 {[%emt 0:01:02]} Kh7 {[%emt 0:03:01]} 26. Kh1 {[%emt 0:02:08]} cxd4 {[%emt 0:05:14]} 27. exd4 {[%emt 0:00:35]} h5 {[%emt 0:05:19]} 28. Qh3 {[%emt 0:01:06]} b5 {[%emt 0:01:25]} 29. Ne3 {[%emt 0:01:14]} Nxe3 {[%emt 0:02:24]} 30. Qxe3 {[%emt 0:00:05]} f5 {[%emt 0:00:36]} 31. Nb3 {[%emt 0:03:12]} Rc7 {[%emt 0:01:34]} 32. a3 {[%emt 0:00:33]} Nb6 {[%emt 0:01:28]} 33. Nd2 {[%emt 0:02:59]} Rfc8 {[%emt 0:00:41]} 34. Nb3 {[%emt 0:01:52]} Bf8 {[%emt 0:02:06]} 35. Nc5 {[%emt 0:00:11]} Na4 {[%emt 0:01:53]} 36. b4 {[%emt 0:01:27]} Nb2 {[%emt 0:03:15]} 37. Rfe1 {[%emt 0:01:49]} Nc4 {[%emt 0:00:54]} 38. Bxc4 {[%emt 0:00:14]} bxc4 {[%emt 0:00:11]} 39. Ra1 {[%emt 0:03:36]} Qe8 {[%emt 0:02:16]} 40. Reb1 {[%emt 0:02:32]} Bxc5 {[%emt 0:02:02]} 41. bxc5 {[%emt 0:30:10]} Bc6 {[%emt 0:30:12]} 42. Rb6 {[%emt 0:00:49]} Bb5 {[%emt 0:00:46]} 43. Bg1 {[%emt 0:00:00]} Rb8 {[%emt 0:00:00]} 44. a4 {[%emt 0:00:00]} Bc6 {[%emt 0:00:00]} 45. Rxa6 {[%emt 0:00:00]} Ra8 {[%emt 0:00:00]} 46. Rxa8 {[%emt 0:00:00]} Qxa8 {[%emt 0:00:00] normal} 1/2-1/2

[Event "DVM U20w 2019"]
[Site "Braunschweig"]
[Date "2019.12.29"]
[Round "5"]
[White "Jacoby, Angelina"]
[Black "Brunner, Sophia"]
[Result "1/2-1/2"]
[ECO "B01"]
[WhiteElo "1635"]
[BlackElo "1852"]
[Annotator "NA"]
[PlyCount "84"]
[EventDate "2019.12.27"]
[EventType "team-tourn"]
[EventRounds "7"]
[EventCountry "GER"]
[SourceTitle "playchess.com"]
[Source "ChessBase"]
[SourceQuality "1"]
[WhiteTeam "Leegebrucher SF"]
[BlackTeam "SK Nordhorn-Blanke"]
[TimeControl "40/5400+30:1800+30"]

1. e4 {[%emt 0:00:08]} d5 {[%emt 0:00:46]} 2. exd5 {[%emt 0:00:07]} Qxd5 {[%emt 0:00:21]} 3. Nc3 {[%emt 0:00:07]} Qa5 {[%emt 0:00:39]} 4. d4 {[%emt 0:00:16]} Nf6 {[%emt 0:00:22]} 5. Nf3 {[%emt 0:00:14]} c6 {[%emt 0:04:23]} 6. Bd2 {[%emt 0:08:41]} Qc7 {[%emt 0:21:26]} 7. Bd3 {[%emt 0:05:10]} Bg4 {[%emt 0:01:04]} 8. h3 {[%emt 0:00:13]} Bh5 {[%emt 0:02:16]} 9. g4 {[%emt 0:03:55]} Bg6 {[%emt 0:00:18]} 10. Qe2 {[%emt 0:02:48]} Bxd3 {[%emt 0:03:00]} 11. Qxd3 {[%emt 0:00:13]} e6 {[%emt 0:00:38]} 12. O-O-O {[%emt 0:03:25]} Nbd7 {[%emt 0:01:34]} 13. Rhe1 {[%emt 0:03:52]} O-O-O {[%emt 0:02:02]} 14. Bg5 {[%emt 0:02:38]} h6 {[%emt 0:02:31]} 15. Bh4 {[%emt 0:01:11]} g5 {[%emt 0:13:10]} 16. Bg3 {[%emt 0:00:24]} Bd6 {[%emt 0:00:37]} 17. Bxd6 {[%emt 0:12:30]} Qxd6 {[%emt 0:00:10]} 18. Ne4 {[%emt 0:06:06]} Nxe4 {[%emt 0:15:35]} 19. Qxe4 {[%emt 0:00:15]} Qd5 {[%emt 0:00:57]} 20. Qxd5 {[%emt 0:02:17]} cxd5 {[%emt 0:01:19]} 21. Ne5 {[%emt 0:10:11]} Nxe5 {[%emt 0:00:41]} 22. Rxe5 {[%emt 0:08:04]} Kd7 {[%emt 0:01:39]} 23. Rde1 {[%emt 0:00:29]} Rde8 {[%emt 0:02:34]} 24. Kd2 {[%emt 0:04:11]} Kd6 {[%emt 0:01:24]} 25. R5e3 {[%emt 0:08:29]} b6 {[%emt 0:10:00]} 26. Rf3 {[%emt 0:07:45]} Ke7 {[%emt 0:02:03]} 27. Rfe3 {[%emt 0:00:40]} Kd6 {[%emt 0:00:36]} 28. Rf3 {[%emt 0:02:18]} Ke7 {[%emt 0:00:07]} 29. Ra3 {[%emt 0:01:30]} Ra8 {[%emt 0:00:39]} 30. Rae3 {[%emt 0:01:34]} Kd6 {[%emt 0:07:15]} 31. Rf3 {[%emt 0:05:02]} Ke7 {[%emt 0:00:20]} 32. Rfe3 {[%emt 0:00:22]} Kd6 {[%emt 0:00:58]} 33. Re5 {[%emt 0:00:37]} Rae8 {[%emt 0:00:34]} 34. R5e3 {[%emt 0:00:25]} f6 {[%emt 0:00:56]} 35. f3 {[%emt 0:00:35]} Rh7 {[%emt 0:01:21]} 36. R1e2 {[%emt 0:00:36]} e5 {[%emt 0:01:47]} 37. Kd3 {[%emt 0:00:32]} Rhe7 {[%emt 0:00:34]} 38. c3 {[%emt 0:00:35]} Re6 {[%emt 0:00:42]} 39. Re1 {[%emt 0:00:15]} R8e7 {[%emt 0:00:37]} 40. R1e2 {[%emt 0:00:12]} Re8 {[%emt 0:01:01]} 41. Re1 {[%emt 0:30:49]} R8e7 {[%emt 0:04:27]} 42. R1e2 {[%emt 0:00:00]} e4+ {normal Kxe4 Ke5+} 1/2-1/2

[Event "DVM U20w 2019"]
[Site "Braunschweig"]
[Date "2019.12.29"]
[Round "5"]
[White "Schmidt, Pauline"]
[Black "Rudolph, Eva"]
[Result "0-1"]
[ECO "B39"]
[WhiteElo "1628"]
[BlackElo "1711"]
[Annotator "NA"]
[PlyCount "38"]
[EventDate "2019.12.27"]
[EventType "team-tourn"]
[EventRounds "7"]
[EventCountry "GER"]
[SourceTitle "playchess.com"]
[Source "ChessBase"]
[SourceQuality "1"]
[WhiteTeam "SG Blau-Weiß Stadtilm"]
[BlackTeam "Düsseldorfer SK"]
[TimeControl "40/5400+30:1800+30"]

1. e4 {[%emt 0:00:00]} c5 {[%emt 0:00:00]} 2. Nf3 {[%emt 0:00:00]} g6 {[%emt 0:00:00]} 3. d4 {[%emt 0:00:00]} cxd4 {[%emt 0:00:00]} 4. Nxd4 {[%emt 0:00:10]} Bg7 {[%emt 0:00:02]} 5. c4 {[%emt 0:01:07]} Nc6 {[%emt 0:00:32]} 6. Be3 {[%emt 0:00:54]} Nf6 {[%emt 0:00:32]} 7. Nc3 {[%emt 0:00:22]} Ng4 {[%emt 0:01:41]} 8. Qxg4 {[%emt 0:15:25]} Nxd4 {[%emt 0:00:25]} 9. Bxd4 {[%emt 0:00:29]} Bxd4 {[%emt 0:00:21]} 10. Rc1 {[%emt 0:03:33]} d5 {[%emt 0:09:19]} 11. Qe2 {[%emt 0:03:32]} dxe4 {[%emt 0:07:01]} 12. Qxe4 {[%emt 0:00:52]} Bf5 {[%emt 0:15:52]} 13. Qe2 {[%emt 0:08:23]} O-O {[%emt 0:03:09]} 14. g3 {[%emt 0:04:43]} Qa5 {[%emt 0:04:16]} 15. a3 {[%emt 0:03:22]} Rfd8 {[%emt 0:02:09]} 16. Qd2 {[%emt 0:26:30]} Rd7 {[%emt 0:05:21]} 17. Bg2 {[%emt 0:14:08]} Bd3 {[%emt 0:07:14]} 18. Bh3 {[%emt 0:05:06]} e6 {[%emt 0:05:21]} 19. Ne4 {[%emt 0:03:47]} Qxd2+ {[%emt 0:03:16] normal} 0-1

[Event "DVM U20w 2019"]
[Site "Braunschweig"]
[Date "2019.12.29"]
[Round "5"]
[White "Visvikis, Kassandra"]
[Black "Berelowitsch, Dana"]
[Result "1/2-1/2"]
[ECO "B35"]
[WhiteElo "1568"]
[BlackElo "1792"]
[Annotator "NA"]
[PlyCount "62"]
[EventDate "2019.12.27"]
[EventType "team-tourn"]
[EventRounds "7"]
[EventCountry "GER"]
[SourceTitle "playchess.com"]
[Source "ChessBase"]
[SourceQuality "1"]
[WhiteTeam "OSG Baden-Baden"]
[BlackTeam "SG Solingen"]
[TimeControl "40/5400+30:1800+30"]

1. e4 {[%emt 0:00:00]} c5 {[%emt 0:00:00]} 2. Nf3 {[%emt 0:00:00]} g6 {[%emt 0:00:00]} 3. d4 {[%emt 0:00:00]} cxd4 {[%emt 0:00:00]} 4. Nxd4 {[%emt 0:00:00]} Bg7 {[%emt 0:00:00]} 5. Be3 {[%emt 0:00:00]} Nc6 {[%emt 0:00:00]} 6. Nc3 {[%emt 0:00:00]} Nf6 {[%emt 0:00:03]} 7. Bc4 {[%emt 0:00:00]} O-O {[%emt 0:00:19]} 8. Bb3 {[%emt 0:00:04]} a5 {[%emt 0:00:13]} 9. f3 {[%emt 0:03:04]} d5 {[%emt 0:00:48]} 10. exd5 {[%emt 0:02:22]} Nb4 {[%emt 0:00:52]} 11. O-O {[%emt 0:02:08]} Nbxd5 {[%emt 0:01:01]} 12. Nxd5 {[%emt 0:02:31]} Nxd5 {[%emt 0:00:10]} 13. Bf2 {[%emt 0:00:21]} a4 {[%emt 0:06:34]} 14. Bxd5 {[%emt 0:07:23]} Qxd5 {[%emt 0:00:16]} 15. a3 {[%emt 0:00:29]} b5 {[%emt 0:10:54]} 16. c3 {[%emt 0:00:19]} Ba6 {[%emt 0:03:44]} 17. Re1 {[%emt 0:01:19]} e5 {[%emt 0:01:27]} 18. Nc2 {[%emt 0:04:17]} Qb3 {[%emt 0:01:24]} 19. Rb1 {[%emt 0:00:38]} Rfd8 {[%emt 0:02:07]} 20. Qc1 {[%emt 0:00:17]} Bb7 {[%emt 0:03:44]} 21. Nb4 {[%emt 0:04:43]} Qc4 {[%emt 0:02:35]} 22. Qe3 {[%emt 0:03:47]} Re8 {[%emt 0:13:47]} 23. Rbd1 {[%emt 0:11:23]} e4 {[%emt 0:17:54]} 24. Qb6 {[%emt 0:04:57]} Rab8 {[%emt 0:05:40]} 25. Bg3 {[%emt 0:00:12]} Bf8 {[%emt 0:02:35]} 26. Kh1 {[%emt 0:05:32]} Bc5 {[%emt 0:00:17]} 27. Qf6 {[%emt 0:00:54]} exf3 {[%emt 0:03:09]} 28. gxf3 {[%emt 0:00:39] normal} Qg4 {[%emt 0:06:24]} 29. Nc6 Bxc6 {[%emt 0:01:03]} 30. Qxc6 {[%emt 0:00:31] normal} Rxe1+ {[%emt 0:01:24]} 31. Rxe1 {[%emt 0:00:09]} Qc8 {[%emt 0:01:21] normal} 1/2-1/2

[Event "DVM U20w 2019"]
[Site "Braunschweig"]
[Date "2019.12.29"]
[Round "5"]
[White "Hallfarth, Luise"]
[Black "Sauer, Annika"]
[Result "0-1"]
[ECO "B01"]
[WhiteElo "1517"]
[BlackElo "1569"]
[Annotator "NA"]
[PlyCount "70"]
[EventDate "2019.12.27"]
[EventType "team-tourn"]
[EventRounds "7"]
[EventCountry "GER"]
[SourceTitle "playchess.com"]
[Source "ChessBase"]
[SourceQuality "1"]
[WhiteTeam "SK Nordhorn-Blanke"]
[BlackTeam "Leegebrucher SF"]
[TimeControl "40/5400+30:1800+30"]

1. e4 {[%emt 0:00:00]} d5 {[%emt 0:00:00]} 2. exd5 {[%emt 0:00:00]} Qxd5 {[%emt 0:00:00]} 3. Nc3 {[%emt 0:00:00]} Qa5 {[%emt 0:00:17]} 4. d4 {[%emt 0:00:22]} c6 {[%emt 0:00:40]} 5. Nf3 {[%emt 0:00:33]} Nf6 {[%emt 0:01:15]} 6. Bf4 {[%emt 0:01:59]} Bg4 {[%emt 0:03:40]} 7. Be2 {[%emt 0:03:37]} e6 {[%emt 0:07:48]} 8. a3 {[%emt 0:01:16]} Nd5 {[%emt 0:05:31]} 9. Bd2 {[%emt 0:01:49]} Nxc3 {[%emt 0:02:29]} 10. Bxc3 {[%emt 0:00:19]} Qc7 {[%emt 0:00:10]} 11. O-O {[%emt 0:00:43]} Bd6 {[%emt 0:00:23]} 12. h3 {[%emt 0:00:59]} Bf5 {[%emt 0:00:14]} 13. Bd3 {[%emt 0:01:41]} Bxd3 {[%emt 0:01:46]} 14. Qxd3 {[%emt 0:00:34]} Nd7 {[%emt 0:10:09]} 15. Rfe1 {[%emt 0:01:07]} O-O-O {[%emt 0:17:05]} 16. b4 {[%emt 0:01:04]} Rde8 {[%emt 0:03:09]} 17. b5 {[%emt 0:01:12]} cxb5 {[%emt 0:00:43]} 18. Bd2 {[%emt 0:01:27]} Qc4 {[%emt 0:12:54]} 19. Qb3 {[%emt 0:02:58]} f6 {[%emt 0:08:28]} 20. a4 {[%emt 0:00:43]} Qxb3 {[%emt 0:00:13]} 21. cxb3 {[%emt 0:00:19]} b4 {[%emt 0:01:39]} 22. a5 {[%emt 0:01:12]} e5 {[%emt 0:03:04]} 23. a6 {[%emt 0:01:08]} exd4 {[%emt 0:02:37]} 24. Rec1+ {[%emt 0:01:09]} Kb8 {[%emt 0:00:09]} 25. Nxd4 {[%emt 0:00:37]} Be5 {[%emt 0:00:44]} 26. Be3 {[%emt 0:00:59]} Nb6 {[%emt 0:00:39]} 27. axb7 {[%emt 0:00:42]} Kxb7 {[%emt 0:00:54]} 28. Ra2 {[%emt 0:00:48]} Rc8 {[%emt 0:01:06]} 29. Rca1 {[%emt 0:01:00]} Ra8 {[%emt 0:01:16]} 30. f4 {[%emt 0:00:19]} Bxd4 {[%emt 0:02:26]} 31. Bxd4 {[%emt 0:00:13]} Rhd8 {[%emt 0:00:28]} 32. Bc5 {[%emt 0:01:27]} Rd3 {[%emt 0:01:03]} 33. Rb2 {[%emt 0:01:51]} Nd5 {[%emt 0:00:40]} 34. Ra4 {[%emt 0:00:37]} a5 {[%emt 0:00:41] normal} 35. Rba2 {[%emt 0:01:44]} Nc3 {[%emt 0:00:16] normal} 0-1